bitfinex-derivatives/quotes_BTCF0:USTF0_20241227
["timestamp","ask_amount","ask_price","bid_price","bid_amount"]
[1735299182745,0.05336153,96638.0,96630.0,1.551813]
[1735299182941,0.00155253,96638.0,96635.0,0.05181]
[1735299184642,0.00255253,96638.0,96635.0,0.05181]
[1735299187052,0.00255253,96638.0,96625.0,1.5]
[1735299187347,0.05181,96637.0,96634.0,0.051811]
[1735299187548,0.05038444,96637.0,96627.0,0.10307388]
[1735299187737,0.05038444,96637.0,96636.0,0.05181]
[1735299188435,0.05038444,96637.0,96636.0,1.55181]
[1735299188950,0.00255253,96638.0,96636.0,1.55181]
[1735299189145,0.001,96637.0,96636.0,1.55281]
[1735299190237,0.15591472,96637.0,96636.0,1.55281]
[1735299190647,0.15591472,96637.0,96636.0,0.05281]
[1735299191747,0.05138063,96637.0,96636.0,0.001]
[1735299191953,0.10318963,96637.0,96636.0,0.001]
[1735299192149,0.05182,96618.0,96616.0,0.00155248]
[1735299192342,0.0328,96617.0,96616.0,0.00155248]
[1735299192651,0.0641,96617.0,96616.0,0.00155248]
[1735299193252,0.11448063,96617.0,96616.0,0.00155248]
[1735299194042,0.11448063,96617.0,96605.0,1.5]
[1735299194243,0.051833,96594.0,96586.0,0.24777761]
[1735299194544,0.051833,96594.0,96587.0,0.051836]
[1735299194738,0.051833,96594.0,96593.0,1.5]
[1735299195150,0.0315,96613.0,96593.0,1.5]
[1735299195451,0.0315,96613.0,96600.0,0.10307388]
[1735299195649,0.051826,96606.0,96600.0,0.10307388]
[1735299196242,0.12395629,96599.0,96596.0,0.051831]
[1735299196650,0.12395629,96599.0,96593.0,1.5006]
[1735299196853,0.051831,96597.0,96593.0,1.5]
[1735299197037,0.12395629,96599.0,96593.0,1.5]
[1735299197243,0.12395629,96599.0,96598.0,0.05183]
[1735299197442,0.12395629,96601.0,96598.0,0.05183]
[1735299197653,0.12395629,96601.0,96593.0,1.50652]
[1735299197849,0.051831,96597.0,96596.0,0.002]
[1735299198442,0.051831,96597.0,96593.0,1.50052]
[1735299198643,0.051831,96597.0,96587.0,0.10307388]
[1735299198843,0.12395629,96603.0,96596.0,0.051831]
[1735299199153,0.12395629,96603.0,96597.0,1.5]
[1735299199349,0.12395629,96603.0,96599.0,0.051829]
[1735299200348,0.12395629,96603.0,96597.0,1.50052]
[1735299200549,0.12395629,96605.0,96604.0,0.051827]
[1735299200748,0.02415629,96605.0,96604.0,0.051827]
[1735299201056,0.15494536,96611.0,96610.0,0.051824]
[1735299201237,0.18456221,96616.0,96610.0,0.051824]
[1735299201442,0.18456221,96616.0,96615.0,0.051821]
[1735299202352,0.00092,96628.0,96626.0,0.051815]
[1735299202545,0.051811,96635.0,96626.0,0.051815]
[1735299203244,0.051811,96635.0,96627.0,1.5]
[1735299204643,0.054811,96635.0,96627.0,1.5]
[1735299205044,0.054811,96635.0,96627.0,1.551814]
[1735299205441,0.054811,96635.0,96629.0,0.051813]
[1735299206555,7.165e-05,96631.0,96629.0,0.051813]
[1735299206857,0.05188465,96631.0,96627.0,1.50052]
[1735299207058,0.05188465,96631.0,96621.0,0.051818]
[1735299207558,7.165e-05,96631.0,96621.0,0.051818]
[1735299207762,0.051814,96628.0,96621.0,0.051818]
[1735299208755,0.051814,96628.0,96623.0,0.051817]
[1735299209153,0.051815,96627.0,96616.0,0.05182]
[1735299209358,0.051815,96627.0,96620.0,0.051818]
[1735299210356,0.051815,96627.0,96624.0,0.051816]
[1735299210864,0.051816,96625.0,96617.0,0.05182]
[1735299211266,0.051816,96625.0,96610.0,0.10307388]
[1735299211267,0.10307388,96630.0,96602.0,1.5]
[1735299211459,0.051822,96614.0,96610.0,0.051824]
[1735299211663,0.0948,96613.0,96603.0,0.051828]
[1735299213061,0.051825,96607.0,96603.0,0.051828]
[1735299213456,0.051825,96607.0,96603.0,0.057828]
[1735299213764,0.051827,96605.0,96603.0,0.006]
[1735299213968,0.19787388,96613.0,96600.0,1.50052]
[1735299214164,0.051831,96597.0,96590.0,0.05338756]
[1735299214670,0.051831,96597.0,96591.0,1.5]
[1735299215168,0.051831,96597.0,96591.0,1.551834]
[1735299215360,0.051831,96597.0,96593.0,0.051833]
[1735299216561,0.052831,96597.0,96594.0,0.051832]
[1735299217175,0.051831,96597.0,96594.0,0.051832]
[1735299218371,0.0948,96613.0,96593.0,0.007]
[1735299218564,0.051827,96605.0,96600.0,0.10307388]
[1735299218760,0.051827,96605.0,96598.0,0.05183]
[1735299219780,0.051827,96605.0,96598.0,0.05383]
[1735299220566,0.051828,96603.0,96598.0,0.05383]
[1735299220766,0.051829,96600.0,96598.0,0.002]
[1735299221171,0.051829,96600.0,96598.0,0.001]
[1735299222172,0.051832,96595.0,96590.0,0.05338656]
[1735299223164,0.01072802,96601.0,96569.0,0.59585761]
[1735299223165,0.20714776,96600.0,96569.0,0.59585761]
[1735299223459,0.20714776,96600.0,96571.0,0.051844]
[1735299223460,0.05184,96580.0,96571.0,0.051844]
[1735299223668,0.05184,96580.0,96569.0,0.59585761]
[1735299223669,0.0666,96579.0,96572.0,1.551844]
[1735299223862,0.0666,96579.0,96572.0,1.5]
[1735299224167,0.0666,96579.0,96574.0,0.051843]
[1735299226170,0.0666,96579.0,96571.0,0.013]
[1735299226171,0.3666,96579.0,96571.0,0.013]
[1735299226365,0.3666,96579.0,96547.0,0.24777761]
[1735299226557,0.10307388,96560.0,96547.0,0.24777761]
[1735299226759,0.051857,96548.0,96547.0,0.18547761]
[1735299227971,0.051863,96538.0,96528.0,0.051868]
[1735299228168,0.032,96547.0,96528.0,0.051868]
[1735299228473,0.051863,96537.0,96528.0,0.051868]
[1735299228975,0.051859,96545.0,96527.0,0.10307388]
[1735299229160,0.051859,96545.0,96536.0,0.051864]
[1735299229567,0.05186,96543.0,96536.0,0.051864]
[1735299229967,0.051861,96542.0,96536.0,0.051864]
[1735299230179,0.051863,96538.0,96532.0,0.00355337]
[1735299230478,0.051863,96538.0,96532.0,0.00155337]
[1735299230667,0.051864,96536.0,96532.0,0.00155337]
[1735299231479,0.051865,96534.0,96532.0,0.00155337]
[1735299231779,0.051865,96534.0,96532.0,0.00255337]
[1735299233077,0.051865,96534.0,96532.0,0.00355337]
[1735299233378,0.051865,96534.0,96533.0,1.5]
[1735299235177,0.051865,96534.0,96533.0,1.501]
[1735299239178,0.051865,96534.0,96533.0,0.001]
[1735299241480,0.10307388,96550.0,96533.0,0.001]
[1735299241790,0.051855,96553.0,96540.0,0.10307388]
[1735299241973,0.051855,96553.0,96541.0,0.0379]
[1735299242373,0.0303,96558.0,96541.0,0.076]
[1735299242573,0.10307388,96560.0,96553.0,0.051854]
[1735299243179,0.051859,96545.0,96542.0,1.5]
[1735299243576,0.051855,96552.0,96545.0,0.051858]
[1735299243779,0.051855,96552.0,96547.0,0.051858]
[1735299244575,0.003,96553.0,96542.0,1.50252]
[1735299244781,0.051859,96546.0,96542.0,1.502]
[1735299245884,0.051862,96539.0,96532.0,0.05341837]
[1735299246071,0.051857,96548.0,96547.0,0.001]
[1735299246271,0.05185,96561.0,96542.0,0.002]
[1735299246272,0.051856,96550.0,96542.0,0.002]
[1735299246881,0.051856,96550.0,96542.0,0.003]
[1735299247590,0.051856,96550.0,96542.0,0.002]
[1735299247885,0.05186,96543.0,96542.0,0.002]
[1735299248081,0.051865,96533.0,96532.0,0.00155337]
[1735299248286,0.051874,96517.0,96512.0,0.051876]
[1735299248877,0.10307388,96524.0,96506.0,0.0382]
[1735299249083,0.051876,96513.0,96506.0,0.0382]
[1735299249390,0.051876,96513.0,96507.0,0.051879]
[1735299249685,0.001,96517.0,96512.0,0.007]
[1735299249884,0.001,96517.0,96512.0,0.011]
[1735299250183,0.051874,96518.0,96512.0,0.004]
[1735299250388,0.001,96513.0,96512.0,0.004]
[1735299250781,0.001,96513.0,96511.0,0.051877]
[1735299251881,0.052876,96513.0,96507.0,0.005]
[1735299252191,0.052876,96513.0,96506.0,0.10763445]
[1735299252388,0.052876,96513.0,96512.0,0.004]
[1735299252583,0.051876,96513.0,96512.0,0.007]
[1735299252988,0.051876,96513.0,96512.0,0.003]
[1735299253689,0.10307388,96516.0,96507.0,0.004]
[1735299253889,0.051879,96508.0,96507.0,0.003]
[1735299254295,0.051879,96508.0,96500.0,0.1]
[1735299254296,0.051882,96501.0,96500.0,0.1]
[1735299254691,0.051882,96501.0,96500.0,1.6]
[1735299255996,0.051882,96501.0,96500.0,0.1]
[1735299256188,0.051882,96501.0,96500.0,0.101]
[1735299256386,0.051882,96501.0,96500.0,1.601]
[1735299257087,0.051882,96501.0,96500.0,1.603]
[1735299258794,0.051882,96501.0,96500.0,0.103]
[1735299261497,0.0394,96506.0,96500.0,0.103]
[1735299261696,0.0413,96507.0,96500.0,0.103]
[1735299261896,0.09280965,96509.0,96508.0,0.051879]
[1735299262499,0.09280965,96509.0,96508.0,1.551879]
[1735299262798,0.09280965,96516.0,96508.0,1.551879]
[1735299263204,0.002,96509.0,96508.0,1.551879]
[1735299263700,0.09280965,96516.0,96508.0,1.551879]
[1735299263899,0.051876,96513.0,96508.0,1.552879]
[1735299264405,0.001,96509.0,96508.0,1.552879]
[1735299265197,0.051876,96513.0,96508.0,1.552879]
[1735299265399,0.002,96509.0,96508.0,1.552879]
[1735299265803,0.051877,96512.0,96508.0,1.552879]
[1735299266002,0.051877,96512.0,96508.0,1.553879]
[1735299266209,0.051877,96511.0,96508.0,1.553879]
[1735299268308,0.051877,96511.0,96508.0,1.552879]
[1735299272620,0.09280965,96515.0,96508.0,1.501]
[1735299272817,0.051878,96510.0,96508.0,1.501]
[1735299274223,0.052878,96510.0,96508.0,1.501]
[1735299275624,0.051878,96510.0,96508.0,1.5]
[1735299275824,0.052878,96510.0,96508.0,1.5]
[1735299276223,0.051878,96510.0,96508.0,1.5]
[1735299276525,0.051878,96510.0,96508.0,1.501]
[1735299278422,0.051878,96510.0,96508.0,0.001]
[1735299278820,0.051882,96501.0,96500.0,0.28511501]
[1735299279126,0.051882,96501.0,96500.0,0.1]
[1735299279928,0.051882,96501.0,96500.0,0.101]
[1735299281030,0.051882,96501.0,96500.0,0.102]
[1735299284536,0.15544987,96504.0,96500.0,0.102]
[1735299284729,0.15544987,96504.0,96503.0,0.051881]
[1735299285321,0.15544987,96504.0,96503.0,1.551881]
[1735299285525,0.15544987,96505.0,96503.0,1.551881]
[1735299287039,0.12438465,96504.0,96503.0,1.73999601]
[1735299288031,0.12438465,96504.0,96503.0,1.74099601]
[1735299288231,0.12438465,96504.0,96503.0,1.555881]
[1735299289124,0.15544987,96510.0,96507.0,0.051879]
[1735299290839,0.15544987,96510.0,96507.0,0.052879]
[1735299293432,0.15544987,96508.0,96507.0,0.052879]
[1735299295135,0.15544987,96508.0,96507.0,1.552879]
[1735299295939,0.09327555,96512.0,96511.0,0.051877]
[1735299296736,0.09327555,96512.0,96511.0,1.551877]
[1735299296934,0.09427555,96512.0,96511.0,1.551877]
[1735299297134,0.001,96512.0,96511.0,1.551877]
[1735299297743,0.09327555,96513.0,96511.0,1.551877]
[1735299298247,0.09327555,96514.0,96513.0,0.051876]
[1735299299541,0.09327555,96528.0,96527.0,0.051868]
[1735299300945,0.008,96528.0,96527.0,0.051868]
[1735299302238,0.011,96528.0,96527.0,0.051868]
[1735299306151,0.10404768,96528.0,96527.0,0.051868]
[1735299308745,0.011,96528.0,96527.0,0.051868]
[1735299311649,0.011,96528.0,96527.0,1.551868]
[1735299313345,0.011,96528.0,96527.0,0.051868]
[1735299314445,0.011,96528.0,96527.0,1.551868]
[1735299317654,0.011,96528.0,96527.0,0.051868]
[1735299322856,0.011,96528.0,96527.0,1.551868]
[1735299324160,0.011,96528.0,96527.0,0.051868]
[1735299326264,0.16644987,96528.0,96527.0,0.051868]
[1735299328966,0.011,96528.0,96527.0,0.051868]
[1735299333769,0.011,96528.0,96527.0,0.29951277]
[1735299340973,0.011,96528.0,96527.0,0.051868]
[1735299341869,0.011,96528.0,96527.0,0.29951277]
[1735299343064,0.011,96528.0,96527.0,0.051868]
[1735299344473,0.011,96528.0,96527.0,1.551868]
[1735299344772,0.10430955,96528.0,96527.0,1.551868]
[1735299347970,0.011,96528.0,96527.0,1.551868]
[1735299351380,0.12441274,96532.0,96531.0,0.051866]
[1735299351568,0.12441274,96533.0,96531.0,0.051866]
[1735299352071,0.12441274,96533.0,96532.0,1.5]
[1735299352978,0.12441274,96537.0,96533.0,0.051865]
[1735299353174,0.12441274,96537.0,96536.0,0.051864]
[1735299353381,7.4e-07,96537.0,96536.0,0.051864]
[1735299354063,7.4e-07,96537.0,96536.0,1.551864]
[1735299354481,0.09324381,96543.0,96542.0,0.05186]
[1735299355974,0.09324381,96553.0,96552.0,0.051855]
[1735299356772,0.09324381,96553.0,96552.0,1.551855]
[1735299357175,0.0412,96554.0,96552.0,1.551855]
[1735299357681,0.002,96553.0,96552.0,1.551855]
[1735299358085,0.006,96553.0,96552.0,1.551855]
[1735299359182,0.004,96553.0,96552.0,1.551855]
[1735299359882,0.006,96553.0,96552.0,1.551855]
[1735299360387,0.006,96553.0,96552.0,1.56244666]
[1735299362583,0.006,96553.0,96552.0,1.74813352]
[1735299364087,0.006,96553.0,96552.0,1.56244666]
[1735299368092,0.051855,96552.0,96551.0,0.18568686]
[1735299368291,0.042,96552.0,96547.0,0.051858]
[1735299368591,0.093855,96552.0,96547.0,0.051858]
[1735299368887,0.042,96552.0,96547.0,0.051858]
[1735299369087,0.051857,96548.0,96546.0,0.23634238]
[1735299369484,0.051857,96548.0,96542.0,0.01034638]
[1735299369790,0.044,96552.0,96539.0,0.051862]
[1735299369988,0.042,96552.0,96546.0,0.051858]
[1735299370292,0.094855,96552.0,96546.0,0.051858]
[1735299370492,0.043,96552.0,96546.0,0.051858]
[1735299370791,0.09301232,96540.0,96532.0,1.5]
[1735299371097,0.09301232,96540.0,96539.0,0.052862]
[1735299372095,0.15544987,96549.0,96539.0,0.001]
[1735299372389,0.0431,96543.0,96532.0,1.50056]
[1735299372591,0.051864,96536.0,96533.0,0.051865]
[1735299373189,0.001,96540.0,96525.0,1.5]
[1735299373387,0.001,96540.0,96535.0,0.051864]
[1735299375090,0.001,96540.0,96537.0,0.051863]
[1735299375993,0.002,96540.0,96537.0,0.051863]
[1735299376793,0.003,96540.0,96537.0,0.051863]
[1735299377392,0.055862,96540.0,96537.0,0.051863]
[1735299377892,0.051862,96539.0,96537.0,0.051863]
[1735299378094,0.051863,96537.0,96530.0,0.051867]
[1735299378594,0.051863,96537.0,96531.0,1.551866]
[1735299379297,0.051863,96537.0,96534.0,0.051865]
[1735299380989,0.052863,96537.0,96534.0,0.051865]
[1735299381899,0.053863,96537.0,96534.0,0.051865]
[1735299382204,0.002,96537.0,96535.0,0.051864]
[1735299382500,0.002,96537.0,96536.0,0.044]
[1735299382694,0.15544987,96543.0,96542.0,0.05186]
[1735299382896,0.55884704,96576.0,96542.0,0.05186]
[1735299382897,0.15444987,96544.0,96542.0,0.05186]
[1735299383297,0.15444987,96544.0,96543.0,1.5]
[1735299384204,0.18456221,96552.0,96543.0,1.5]
[1735299384501,0.21742901,96567.0,96543.0,1.5]
[1735299384502,0.0929172,96557.0,96543.0,1.5]
[1735299384699,0.0929172,96557.0,96555.0,0.051853]
[1735299386194,0.0929172,96558.0,96557.0,0.051852]
[1735299387502,0.0534027,96563.0,96557.0,0.051852]
[1735299388109,0.006,96558.0,96557.0,0.052852]
[1735299388600,0.0594027,96563.0,96557.0,0.052852]
[1735299389099,0.006,96558.0,96557.0,0.052852]
[1735299389690,0.006,96558.0,96557.0,0.001]
[1735299390496,0.009,96558.0,96557.0,0.001]
[1735299390708,0.054852,96558.0,96557.0,0.001]
[1735299391200,0.051853,96556.0,96552.0,0.01067384]
[1735299391402,0.051854,96555.0,96550.0,0.051856]
[1735299391794,0.051854,96555.0,96550.0,0.06247303]
[1735299392898,0.09296324,96552.0,96550.0,0.06247303]
[1735299393900,0.09296324,96552.0,96536.0,0.0863]
[1735299394108,0.051863,96537.0,96536.0,0.0863]
[1735299394695,0.051863,96537.0,96536.0,0.044]
[1735299395305,0.051863,96537.0,96536.0,0.046]
[1735299395805,0.14482624,96537.0,96536.0,0.05659273]
[1735299396207,0.14482624,96537.0,96536.0,0.05759273]
[1735299396803,0.051863,96537.0,96536.0,0.05759273]
[1735299397010,0.054863,96537.0,96536.0,0.05459273]
[1735299397311,0.003,96537.0,96536.0,0.05459273]
[1735299397611,0.002,96537.0,96536.0,0.05459273]
[1735299397801,0.003,96537.0,96536.0,0.05459273]
[1735299398807,0.10228755,96549.0,96536.0,0.05459273]
[1735299399007,0.10228755,96549.0,96544.0,0.051859]
[1735299399307,0.051857,96549.0,96545.0,1.551859]
[1735299400504,0.054857,96549.0,96545.0,1.551859]
[1735299401206,0.054857,96549.0,96545.0,0.051859]
[1735299403201,0.059857,96549.0,96545.0,0.051859]
[1735299403507,0.008,96549.0,96545.0,0.051859]
[1735299403808,0.051858,96546.0,96545.0,0.051859]
[1735299404313,0.3,96546.0,96526.0,0.0405]
[1735299404613,0.051868,96528.0,96526.0,0.0405]
[1735299404909,0.051868,96528.0,96510.0,0.37029681]
[1735299404910,0.051871,96523.0,96510.0,0.37029681]
[1735299405112,0.051871,96523.0,96512.0,0.0103139]
[1735299406306,0.051871,96523.0,96514.0,0.051875]
[1735299407314,0.055871,96523.0,96514.0,0.051875]
[1735299409014,0.056871,96523.0,96514.0,0.051875]
[1735299410313,0.056871,96523.0,96512.0,0.0103139]
[1735299410508,0.005,96523.0,96521.0,0.051871]
[1735299410705,0.005,96523.0,96522.0,0.0426537]
[1735299410905,0.005,96523.0,96522.0,1.5426537]
[1735299411913,0.09795812,96523.0,96522.0,1.5426537]
[1735299412815,0.09795812,96523.0,96522.0,1.55299034]
[1735299413116,0.005,96523.0,96522.0,1.55299034]
[1735299417515,0.005,96523.0,96522.0,0.01189034]
[1735299417815,0.005,96523.0,96522.0,0.0015537]
[1735299423508,0.005,96523.0,96500.0,0.1]
[1735299423509,0.051879,96508.0,96500.0,0.1]
[1735299423721,0.051882,96501.0,96500.0,0.1]
[1735299425526,0.051882,96501.0,96500.0,0.104]
[1735299426521,0.20680527,96501.0,96500.0,0.104]
[1735299426925,0.24940527,96501.0,96500.0,0.104]
[1735299427519,0.094482,96501.0,96500.0,0.104]
[1735299428316,0.094482,96501.0,96500.0,0.103]
[1735299428619,0.1449403,96501.0,96500.0,0.103]
[1735299428823,0.1449403,96501.0,96500.0,0.101]
[1735299429124,0.15540817,96501.0,96500.0,0.101]
[1735299429823,0.10494987,96501.0,96500.0,0.101]
[1735299434020,0.25983035,96501.0,96500.0,0.101]
[1735299435325,0.15540912,96501.0,96500.0,0.101]
[1735299437029,0.10494987,96501.0,96500.0,0.101]
[1735299439125,0.06234987,96501.0,96500.0,0.101]
[1735299440126,0.051882,96501.0,96500.0,0.101]
[1735299444334,0.06250905,96501.0,96500.0,0.101]
[1735299445333,0.15538887,96501.0,96500.0,0.101]
[1735299446035,0.14476182,96501.0,96500.0,0.101]
[1735299446531,0.051882,96501.0,96500.0,0.101]
[1735299453230,0.20670638,96501.0,96500.0,0.101]
[1735299454842,0.10233425,96501.0,96500.0,0.101]
[1735299455833,0.051882,96501.0,96500.0,0.101]
[1735299457432,0.10233425,96501.0,96500.0,0.101]
[1735299458441,0.28689646,96501.0,96500.0,0.101]
[1735299458847,0.29089646,96501.0,96500.0,0.1]
[1735299459047,0.29289646,96501.0,96500.0,0.1]
[1735299459546,0.10833425,96501.0,96500.0,0.1]
[1735299461145,0.057882,96501.0,96500.0,0.1]
[1735299461952,0.10833425,96501.0,96500.0,0.1]
[1735299462649,0.10633425,96501.0,96500.0,0.1]
[1735299462836,0.10333425,96501.0,96500.0,0.1]
[1735299463041,0.10633425,96501.0,96500.0,0.1]
[1735299465052,0.10533425,96501.0,96500.0,0.1]
[1735299465644,0.10633425,96501.0,96500.0,0.1]
[1735299468046,0.051891,96485.0,96482.0,0.042]
[1735299468350,0.1031296,96494.0,96482.0,0.28990283]
[1735299468554,0.051889,96490.0,96483.0,0.051892]
[1735299469249,0.18667236,96489.0,96484.0,0.0411]
[1735299470747,0.05045225,96489.0,96484.0,0.0411]
[1735299470941,0.05045225,96489.0,96484.0,0.0431]
[1735299471442,0.05045225,96489.0,96484.0,0.092991]
[1735299471943,0.05045225,96489.0,96484.0,0.091991]
[1735299472152,0.05045225,96489.0,96484.0,0.093991]
[1735299472153,0.15554743,96485.0,96484.0,0.093991]
[1735299472451,0.15554743,96485.0,96484.0,0.094991]
[1735299473553,0.15554743,96485.0,96484.0,0.0431]
[1735299473748,0.15554743,96485.0,96484.0,0.0411]
[1735299474743,0.05045225,96485.0,96484.0,0.0411]
[1735299474944,0.05045225,96485.0,96484.0,0.0401]
[1735299475149,0.05045225,96485.0,96484.0,0.0411]
[1735299476042,0.051891,96486.0,96484.0,0.0411]
[1735299477452,0.05045225,96485.0,96484.0,0.0411]
[1735299477752,0.05045225,96485.0,96484.0,0.0401]
[1735299477950,0.05045225,96485.0,96484.0,0.0411]
[1735299480657,0.15549668,96485.0,96484.0,0.0411]
[1735299481957,0.051891,96486.0,96484.0,0.0411]
[1735299483054,0.05045704,96485.0,96484.0,0.0411]
[1735299484652,0.05045704,96485.0,96484.0,0.0401]
[1735299484852,0.05045704,96485.0,96484.0,0.0411]
[1735299485360,0.15550539,96487.0,96484.0,0.0411]
[1735299485560,0.15550539,96487.0,96484.0,0.092991]
[1735299486554,0.15550539,96487.0,96484.0,0.0411]
[1735299486756,0.05045704,96489.0,96484.0,0.0411]
[1735299486958,0.00155484,96505.0,96504.0,0.051881]
[1735299487553,0.00155484,96505.0,96504.0,1.56324475]
[1735299488265,0.00155484,96505.0,96504.0,1.56324465]
[1735299488564,0.051872,96521.0,96504.0,1.56324465]
[1735299488565,0.051872,96521.0,96517.0,0.051874]
[1735299488759,0.051872,96521.0,96519.0,0.051873]
[1735299489848,0.004,96505.0,96504.0,1.56219709]
[1735299490049,0.004,96505.0,96504.0,1.57356309]
[1735299490358,0.004,96505.0,96504.0,1.56219709]
[1735299490565,0.1550016,96520.0,96519.0,0.001]
[1735299490763,0.051872,96520.0,96519.0,0.001]
[1735299491649,0.051876,96514.0,96506.0,0.051879]
[1735299491854,0.051877,96511.0,96506.0,0.051879]
[1735299492452,0.051877,96511.0,96507.0,0.051879]
[1735299493959,0.051877,96511.0,96502.0,0.01054636]
[1735299494159,0.051877,96511.0,96509.0,0.051878]
[1735299494555,0.054877,96511.0,96509.0,0.051878]
[1735299495465,0.053877,96511.0,96509.0,0.051878]
[1735299496162,0.051878,96509.0,96506.0,0.001]
[1735299496569,0.0412,96508.0,96506.0,0.001]
[1735299497265,0.0412,96508.0,96506.0,0.052879]
[1735299497469,0.007,96511.0,96510.0,0.051878]
[1735299497965,0.051878,96510.0,96503.0,0.051881]
[1735299498165,0.093478,96510.0,96504.0,0.051881]
[1735299498368,0.002,96508.0,96505.0,0.05188]
[1735299498969,0.007,96508.0,96506.0,0.001]
[1735299499270,0.058879,96508.0,96506.0,0.001]
[1735299499458,0.051881,96504.0,96498.0,0.051884]
[1735299500058,0.051881,96504.0,96499.0,0.051883]
[1735299500367,0.14497058,96504.0,96499.0,0.051883]
[1735299501058,0.14597058,96504.0,96499.0,0.051883]
[1735299501767,0.14497058,96504.0,96499.0,0.051883]
[1735299501966,0.14597058,96504.0,96499.0,0.051883]
[1735299502163,0.14797058,96504.0,96499.0,0.051883]
[1735299502467,1.0,96500.0,96499.0,0.051883]
[1735299503667,1.001,96500.0,96499.0,0.051883]
[1735299504167,1.003,96500.0,96499.0,0.051883]
[1735299504569,1.003,96500.0,96492.0,0.051887]
[1735299504762,1.003,96500.0,96483.0,1.68611027]
[1735299504763,0.051884,96499.0,96494.0,0.051886]
[1735299506059,0.051884,96499.0,96489.0,0.01044347]
[1735299506261,0.051884,96499.0,96495.0,0.051885]
[1735299507062,0.14497358,96499.0,96495.0,0.051885]
[1735299507363,0.14597358,96499.0,96495.0,0.051885]
[1735299507869,0.14697358,96499.0,96495.0,0.051885]
[1735299508065,0.09308958,96498.0,96495.0,0.051885]
[1735299508270,0.09308958,96498.0,96489.0,0.01044347]
[1735299508570,0.09308958,96498.0,96489.0,0.051889]
[1735299508969,0.051887,96492.0,96489.0,0.051889]
[1735299509764,0.051887,96492.0,96483.0,1.50052]
[1735299509963,0.051887,96492.0,96490.0,0.051888]
[1735299511670,0.051888,96490.0,96489.0,0.002]
[1735299511872,0.0409,96491.0,96483.0,0.051892]
[1735299512172,0.05189,96487.0,96483.0,0.051892]
[1735299512658,0.051891,96486.0,96483.0,0.051892]
[1735299512972,0.041,96485.0,96483.0,0.051892]
[1735299513172,0.041,96485.0,96483.0,0.054892]
[1735299513367,0.13408958,96485.0,96483.0,0.055892]
[1735299514166,0.13408958,96485.0,96483.0,0.054892]
[1735299514969,0.041,96485.0,96483.0,0.054892]
[1735299515168,0.041,96485.0,96483.0,0.053892]
[1735299515366,0.051892,96484.0,96483.0,0.053892]
[1735299515767,0.051892,96484.0,96483.0,0.052892]
[1735299522567,0.041,96485.0,96483.0,0.052892]
[1735299522881,0.13408958,96485.0,96483.0,0.052892]
[1735299524078,0.09308958,96484.0,96483.0,0.052892]
[1735299526272,0.041,96485.0,96483.0,0.052892]
[1735299526468,0.12411944,96488.0,96487.0,0.05189]
[1735299527874,0.12511944,96488.0,96487.0,0.05189]
[1735299529279,0.001,96488.0,96487.0,0.05189]
[1735299537084,0.15613108,96488.0,96487.0,0.05189]
[1735299538190,0.05145709,96488.0,96484.0,0.18611027]
[1735299538378,0.051891,96486.0,96484.0,0.18611027]
[1735299539684,0.20739244,96486.0,96485.0,0.18611027]
[1735299541180,0.20739244,96486.0,96477.0,0.01053148]
[1735299541181,0.051891,96486.0,96481.0,0.24790283]
[1735299541484,0.051891,96486.0,96484.0,0.051891]
[1735299541784,0.051891,96486.0,96484.0,0.052891]
[1735299543393,0.051891,96486.0,96484.0,0.051891]
[1735299544093,0.051891,96486.0,96484.0,0.052891]
[1735299544776,1.0,96485.0,96484.0,0.052891]
[1735299547493,1.05045709,96485.0,96484.0,0.052891]
[1735299549795,1.15562169,96485.0,96484.0,0.052891]
[1735299550395,0.15562169,96485.0,96484.0,0.052891]
[1735299554400,0.15562169,96485.0,96484.0,0.051891]
[1735299554594,0.05045742,96485.0,96484.0,0.051891]
[1735299556094,0.051891,96486.0,96484.0,0.051891]
[1735299557202,0.15557788,96485.0,96484.0,0.051891]
[1735299557696,0.15402347,96485.0,96484.0,0.051891]
[1735299557893,0.15402347,96485.0,96484.0,0.133291]
[1735299558094,0.15402347,96485.0,96484.0,0.433291]
[1735299558304,0.18612494,96493.0,96492.0,0.051887]
[1735299558892,0.18612494,96493.0,96492.0,1.551887]
[1735299559095,0.12447334,96493.0,96492.0,1.5]
[1735299559394,0.12447334,96493.0,96492.0,1.551887]
[1735299560900,0.0015549,96509.0,96493.0,0.051887]
[1735299560901,0.09322158,96504.0,96493.0,0.051887]
[1735299561102,0.09322158,96504.0,96492.0,1.85065943]
[1735299561288,0.001,96493.0,96492.0,1.85013943]
[1735299562092,0.09522158,96504.0,96503.0,0.051881]
[1735299562293,0.002,96504.0,96503.0,0.051881]
[1735299563696,0.09322158,96508.0,96507.0,0.051879]
[1735299564899,0.09477648,96509.0,96507.0,0.051879]
[1735299565094,0.09477648,96509.0,96507.0,0.052879]
[1735299565296,0.009,96508.0,96507.0,0.052879]
[1735299565809,5.8e-07,96509.0,96507.0,0.352879]
[1735299566000,5.8e-07,96509.0,96508.0,0.0404]
[1735299566312,5.8e-07,96509.0,96508.0,1.5404]
[1735299566500,0.12447334,96516.0,96515.0,0.051875]
[1735299568004,0.0405,96529.0,96508.0,1.54092]
[1735299568213,0.0405,96529.0,96528.0,0.051868]
[1735299569726,0.0485,96529.0,96528.0,0.052868]
[1735299570725,0.012,96529.0,96528.0,0.052868]
[1735299571318,0.012,96529.0,96528.0,1.552868]
[1735299571917,0.008,96529.0,96528.0,1.552868]